Cogmind - Beta 13 @@@ ROGUE MODE // 2024.04.03 @ 02:16:20 Player: Rizzen Result: Destroyed by Y-64 Sentinel with KE Penetrator Performance ------------- Evolutions (4) 2000 Regions Visited (12) 2400 Robots Destroyed (134) 670 Value Destroyed (4178) 4178 Prototype IDs (46) 920 Alien Tech Used (0) 0 Bonus (2271) 2271 TOTAL SCORE: 12439 Bonus ------- High Alert Combat Kills 852 Follower Combat Kills 843 Aligned with FarCom 300 Met Data Miner 300 Friendly Fire -24 Cogmind --------- Core Integrity 0/850 Matter 296/300 Energy 99/100 System Corruption 2% Temperature Cool (0) Movement Core (50) Location -5/Proximity Caves Parts ------- > --- POWER (2) -------- (None) > --- PROPULSION (4) --- (None) > --- UTILITY (6) ------ Improved Signal Interpreter Advanced Targeting Computer Target Analyzer > --- WEAPON (3) ------- (None) > --- INVENTORY (5) ---- Advanced Cooling System Peak State ------------ > --- POWER ------------ Enhanced Nuclear Core Light Angular Momentum Engine > --- PROPULSION ------- Improved Airjet Improved Airjet Improved Airjet Improved Airjet > --- UTILITY ---------- Improved Cooling System Improved Cooling System Advanced Targeting Computer Target Analyzer Particle Charger Force Field > --- WEAPON ----------- Beamcaster Beamcaster Beamcaster > --- INVENTORY -------- Improved Cooling System Improved Cooling System Plasma Cannon Plasma Cannon Plasma Cannon [Rating: 69] Favorites ----------- Power Enhanced Nuclear Core Engine Light Ion Engine Power Core Enhanced Nuclear Core Reactor Antimatter Reactor Propulsion Improved Airjet Leg Carbon-fiber Leg Wheel Armored Huge Wheel Hover Unit Improved Airjet Flight Unit Flight Unit Utility Improved Cooling System Device Improved Cooling System Storage Compact Matter Pod Processor Target Analyzer Hackware Hacking Suite Protection Improved Light Armor Plating Weapon Beamcaster Energy Gun Beamcaster Energy Cannon Heavy Particle Cannon Ballistic Gun Light Assault Rifle Ballistic Cannon Light Cannon Launcher Rocket Launcher Special Weapon Field Lobotomy Kit Build | -11 -10 -10 -10 -9 -8 -7 -7 -7 -6 -6 -6 -5 ------- Run | Yrd Mat Min Exi Min Mat Fac Was Fac Fac Low Dat Pro Slots Evolved 8 | . . . . . 4 2 . . 2 . . . Power 1 | . . . . . . . . . 1 . . . Propulsion 2 | . . . . . 2 . . . . . . . Utility 4 | . . . . . 2 1 . . 1 . . . Weapon 1 | . . . . . . 1 . . . . . . Parts Attached 196 | 12 30 . . 2 68 37 13 17 6 7 3 1 Power 39 | 5 8 . . . 10 4 2 4 3 3 . . Engine 19 | 5 8 . . . 2 2 . . 2 . . . Core 18 | . . . . . 8 2 1 3 1 3 . . Reactor 2 | . . . . . . . 1 1 . . . . Propulsion 49 | 2 11 . . . 21 6 2 7 . . . . Treads . | . . . . . . . . . . . . . Leg 14 | . . . . . 14 . . . . . . . Wheel 7 | 2 2 . . . . 3 . . . . . . Hover 18 | . 2 . . . 7 2 . 7 . . . . Flight 10 | . 7 . . . . 1 2 . . . . . Utility 47 | 2 5 . . . 10 13 5 6 3 2 . 1 Device 34 | 2 3 . . . 5 9 5 5 3 2 . . Storage 1 | . . . . . 1 . . . . . . . Processor 7 | . 2 . . . 2 2 . . . . . 1 Hackware 3 | . . . . . 1 1 . 1 . . . . Protection 2 | . . . . . 1 1 . . . . . . Artifact . | . . . . . . . . . . . . . Weapon 61 | 3 6 . . 2 27 14 4 . . 2 3 . Energy Gun 32 | 3 . . . . 17 9 3 . . . . . Energy Cannon 13 | . . . . . 2 5 1 . . 2 3 . Ballistic Gun 9 | . 5 . . 2 2 . . . . . . . Ballistic Cannon 1 | . 1 . . . . . . . . . . . Launcher 4 | . . . . . 4 . . . . . . . Special Weapon 2 | . . . . . 2 . . . . . . . Impact Weapon . | . . . . . . . . . . . . . Slashing Weapon . | . . . . . . . . . . . . . Piercing Weapon . | . . . . . . . . . . . . . Special Melee Weapon . | . . . . . . . . . . . . . Unidentified Prototypes 10 | . . . . . 3 5 1 1 . . . . Parts Lost 40 | . 1 . . . 17 7 . 1 . 4 10 . Power 6 | . . . . . 3 1 . . . . 2 . Propulsion 10 | . . . . . 6 1 . . . 1 2 . Utility 12 | . 1 . . . 4 1 . 1 . 2 3 . Weapon 12 | . . . . . 4 4 . . . 1 3 . Highest Loss Streak 10 | . 1 . . . 9 2 . 1 . 4 10 . To Critical Strikes . | . . . . . . . . . . . . . Average Slot Usage (%) 89 | . 99 100 100 100 88 81 82 95 99 93 55 15 Engine 4 | . 14 14 14 14 2 4 . . 4 4 . . Core 4 | . . . . . 6 2 4 6 7 7 4 . Leg 3 | . . . . . 17 2 . . . . . . Wheel 3 | . 8 . . . . 11 . . . . . . Hover 9 | . 2 . . . 7 1 8 22 26 20 10 . Flight 5 | . 17 28 28 28 2 . 6 3 . . . . Device 14 | . 14 . . . 6 15 21 16 25 25 16 . Storage 1 | . . . . . 6 . . . . . . . Processor 17 | . 13 28 28 28 17 19 15 15 13 13 13 15 Hackware 1 | . . . . . 2 1 . 5 . . . . Energy Gun 11 | . . . . . 10 15 7 23 20 12 2 . Energy Cannon 3 | . . . . . 3 4 15 . . 7 7 . Ballistic Gun 3 | . 23 14 14 14 1 . . . . . . . Ballistic Cannon 1 | . 4 14 14 14 . . . . . . . . Naked Turns . | . . . . . . . . . . . . . Heaviest Build 54 | 9 9 7 7 7 21 34 43 28 50 54 54 . Greatest Support 68 | 20 20 8 8 8 68 68 26 36 36 36 27 3 Greatest Overweight (x) 7 | . 1 . . . 4 7 3 7 1 1 2 . Average Overweight (x) . | . . . . . . . 1 . . 1 . . Largest Inventory Capacity 5 | 5 5 5 5 5 5 5 5 5 5 5 5 5 Average Capacity 5 | 5 5 5 5 5 5 5 5 5 5 5 5 5 Most Carried 5 | 4 5 5 5 5 5 5 5 5 5 5 5 2 Average Carried 3 | 2 4 5 4 4 2 3 3 4 4 4 2 . Final Capacity 5 | 5 5 5 5 5 5 5 5 5 5 5 5 5 Final Carried 5 | 3 5 5 5 5 5 . 5 4 5 5 . 1 Class Distribution -------------------- 54% | Gunner 23% | Scavenger-Mutant 19% | Mutant Dominant Class ---------------- Scavenger-Mutant | -10/Materials Scavenger-Mutant | -10/Mines Scavenger-Mutant | -10/Exiles Scavenger-Mutant | -9/Mines Mutant | -8/Materials Gunner | -7/Factory Gunner | -7/Waste Gunner | -7/Factory Gunner | -6/Factory Gunner | -6/Lower Caves Mutant | -6/Data Miner Mutant | -5/Proximity Caves Resources | -11 -10 -10 -10 -9 -8 -7 -7 -7 -6 -6 -6 -5 ----------- Run | Yrd Mat Min Exi Min Mat Fac Was Fac Fac Low Dat Pro Matter Collected 3295 | 320 486 . . 59 1206 336 220 195 89 367 . 17 Remotely . | . . . . . . . . . . . . . Salvage Created 5098 | 164 728 . . 43 1650 1433 . 254 334 492 . . Parts 251 | 17 58 . . 3 79 58 . 9 13 14 . . Haulers Intercepted 5 | . 2 . . . 2 . . 1 . . . . Recyclers Shooed 3 | . 3 . . . . . . . . . . . Parts Field Recycled . | . . . . . . . . . . . . . Retrieved Matter . | . . . . . . . . . . . . . Parts Self-Destructed 7 | . . . . . . . . . . 7 . . Prevented . | . . . . . . . . . . . . . Kills | -11 -10 -10 -10 -9 -8 -7 -7 -7 -6 -6 -6 -5 ------- Run | Yrd Mat Min Exi Min Mat Fac Was Fac Fac Low Dat Pro Combat Hostiles Destroyed 99 | 1 10 . . 1 44 25 . 4 7 7 . . Guns 66 | 1 10 . . . 23 19 . 3 6 4 . . Cannons 12 | . . . . 1 6 3 . . . 2 . . AOE 13 | . . . . . 13 . . . . . . . Classes Destroyed 16 | 3 6 . . . 4 2 . . . 1 . . Worker 7 | 1 2 . . . 1 2 . 1 . . . . Builder 3 | . . . . . 2 1 . . . . . . Tunneler 6 | 4 . . . . 1 1 . . . . . . Hauler 5 | . 2 . . . 2 . . 1 . . . . Recycler 5 | . 3 . . . 1 1 . . . . . . Mechanic 1 | . 1 . . . . . . . . . . . Operator 2 | . 1 . . . 1 . . . . . . . Watcher 10 | . 3 . . . 2 3 . 1 1 . . . Swarmer 28 | . 6 . . . 12 6 . . 3 1 . . Grunt 46 | 1 4 . . 1 25 9 . 2 2 2 . . Brawler 4 | . . . . . 1 2 . . . 1 . . Duelist 5 | . . . . . 3 1 . . . 1 . . Sentry 7 | . . . . . 3 2 . . . 2 . . Hunter 2 | . . . . . . 2 . . . . . . Programmer 6 | . . . . . . 3 . 2 1 . . . Samaritan 2 | . . . . . . . . . . 2 . . Thug 1 | . . . . . . . . . 1 . . . Best Kill Streak 10 | 2 7 . . 1 10 5 . 2 2 2 . . Combat Bots Only 8 | 1 3 . . 1 8 5 . 2 2 2 . . Max Kills in Single Turn 4 | 1 1 . . 1 4 2 . 1 1 1 . . Gunslinging 1 | . . . . . . 1 . . . . . . Exploded 3 | . . . . . 3 . . . . . . . Melee . | . . . . . . . . . . . . . Uniques/NPCs Destroyed . | . . . . . . . . . . . . . Combat | -11 -10 -10 -10 -9 -8 -7 -7 -7 -6 -6 -6 -5 -------- Run | Yrd Mat Min Exi Min Mat Fac Was Fac Fac Low Dat Pro Hostile Shots Fired 623 | 2 68 . . 11 271 124 . 17 27 56 46 1 Missed 210 | 1 27 . . 6 80 45 . 9 9 20 13 . Damage Taken 7341 | 11 425 . . 69 2885 1459 . 253 152 523 1537 27 Core 1821 | . 111 . . 16 525 285 . 11 . 37 809 27 Absorbed by Shields 317 | . . . . . . . . . 159 158 . . Regen/Repaired (Parts) 511 | . 7 . . . 333 . 59 77 35 . . . Core Remaining (%) 52 | 100 . . . 49 4 . . 57 . . . . Volleys Fired 412 | 13 85 . . 6 185 66 . 14 16 26 1 . Largest 3 | 2 2 . . 2 2 3 . 3 3 3 1 . Hottest 235 | 90 55 . . 55 150 224 . 225 225 235 80 . Shots Fired 830 | 26 170 . . 12 288 162 . 42 49 79 2 . Gun 672 | 26 164 . . 6 186 134 . 42 49 64 1 . Cannon 110 | . 6 . . 6 54 28 . . . 15 1 . Launcher 43 | . . . . . 43 . . . . . . . Special 5 | . . . . . 5 . . . . . . . Kinetic 202 | . 170 . . 12 20 . . . . . . . Thermal 546 | 8 . . . . 212 154 . 42 49 79 2 . Explosive 43 | . . . . . 43 . . . . . . . Electromagnetic 34 | 18 . . . . 8 8 . . . . . . Robot Hit Streak 34 | 6 10 . . 7 9 34 . 7 7 13 1 . Robot Miss Streak 7 | 4 6 . . 2 6 3 . 7 4 3 1 . Penetration Max . | . . . . . . . . . . . . . Secondary Targets 6 | . 1 . . . 2 1 . . 2 . . . Max Gunslinging Chain 1 | . 1 . . . 1 1 . . 1 . . . Shots Hit Robots 481 | 14 95 . . 8 152 113 . 21 26 51 1 . Core Hits 245 | 6 45 . . 2 95 62 . 8 7 19 1 . Critical Kills . | . . . . . . . . . . . . . Critical Parts Destroyed . | . . . . . . . . . . . . . Critical Strikes 31 | . . . . . 9 5 . 5 2 10 . . Burn 31 | . . . . . 9 5 . 5 2 10 . . Melee Attacks . | . . . . . . . . . . . . . Impact . | . . . . . . . . . . . . . Slashing . | . . . . . . . . . . . . . Piercing . | . . . . . . . . . . . . . Sneak Attacks . | . . . . . . . . . . . . . Combat Hostiles . | . . . . . . . . . . . . . Follow-up Attacks . | . . . . . . . . . . . . . Damage Inflicted 10769 | 189 849 . . 103 4479 2704 . 540 688 1189 28 . Guns 7055 | 189 812 . . 20 1775 2084 . 538 657 980 . . Cannons 1574 | . 37 . . 83 775 453 . . . 209 17 . Explosions 2060 | . . . . . 1923 137 . . . . . . Melee . | . . . . . . . . . . . . . Ramming 80 | . . . . . 6 30 . 2 31 . 11 . Kinetic 1025 | . 849 . . 103 73 . . . . . . . Thermal 7351 | 37 . . . . 2516 2397 . 538 657 1189 17 . Explosive 1828 | . . . . . 1828 . . . . . . . Electromagnetic 485 | 152 . . . . 56 277 . . . . . . Impact . | . . . . . . . . . . . . . Slashing . | . . . . . . . . . . . . . Piercing . | . . . . . . . . . . . . . Highest Corruption 4 | . . . . . . 3 3 4 2 2 2 2 Average Corruption 2 | . . . . . . 1 3 2 1 2 2 2 Corruption Purged 8 | . . . . . . . . 8 . . . . Corruption Blocked . | . . . . . . . . . . . . . Effects 58 | . . . . . . 19 8 6 9 13 1 2 Message Errors 12 | . . . . . . 3 2 2 1 4 . . Matter Fused 20 | . . . . . . 8 1 1 4 4 . 2 Heat Flow Errors 6 | . . . . . . 4 1 . . 1 . . Energy Discharges 5 | . . . . . . 1 1 . 1 2 . . Parts Fused 2 | . . . . . . . 1 1 . . . . Data Loss (minor) 4 | . . . . . . 1 2 1 . . . . Data Loss (major) 2 | . . . . . . . . 1 1 . . . Misfires 4 | . . . . . . . . . 1 2 1 . Alerts 1 | . . . . . . . . . 1 . . . Weapon Failures 2 | . . . . . . 2 . . . . . . Overload Shots . | . . . . . . . . . . . . . Overflow Damage 145 | . 7 . . . 114 . . . 11 13 . . Projectiles 38 | . 7 . . . 18 . . . . 13 . . Explosions 96 | . . . . . 96 . . . . . . . Melee 11 | . . . . . . . . . 11 . . . Knockbacks 2 | . 1 . . 1 . . . . . . . . Impact . | . . . . . . . . . . . . . Kinetic 2 | . 1 . . 1 . . . . . . . . Secondary . | . . . . . . . . . . . . . Self-Inflicted Damage 119 | . . . . . 84 14 . 1 15 . 5 . Shots 4 | . . . . . 4 . . . . . . . Rammed 10 | . . . . . 1 5 . 1 1 . 2 . Targets Rammed 10 | . . . . . 1 5 . 1 1 . 2 . Kicked . | . . . . . . . . . . . . . Crushed . | . . . . . . . . . . . . . Highest Temperature 881 | 90 36 . . 38 504 881 74 202 42 178 6 . Average Temperature 115 | 31 11 . . 16 105 197 38 81 18 50 4 . Received Heat Transfer 2216 | 6 174 . . 39 1314 447 . 33 44 159 . . Effects 30 | . . . . . 9 21 . . . . . . Shutdowns 5 | . . . . . 1 4 . . . . . . Energy Bleed 4 | . . . . . 2 2 . . . . . . Interference 13 | . . . . . 4 9 . . . . . . Matter Decay 2 | . . . . . 1 1 . . . . . . Short Circuit 1 | . . . . . . 1 . . . . . . Damage (minor) 4 | . . . . . 1 3 . . . . . . Damage (core) 1 | . . . . . . 1 . . . . . . Siege Activations . | . . . . . . . . . . . . . Robots Corrupted 1 | . . . . . . 1 . . . . . . Combat Hostiles 1 | . . . . . . 1 . . . . . . Parts Fried 1 | . . . . . . 1 . . . . . . Impact Corruptions 1 | . . . . . . . . . 1 . . . Robots Melted 7 | . . . . . 2 2 . 1 1 1 . . Combat Hostiles 7 | . . . . . 2 2 . 1 1 1 . . Parts Melted 28 | 1 . . . . 5 12 . 4 3 3 . . Heat Transferred 15413 | 111 . . . . 5354 4836 . 1147 1147 2768 50 . Parts Sabotaged . | . . . . . . . . . . . . . Parts Stolen . | . . . . . . . . . . . . . Parts Stripped . | . . . . . . . . . . . . . Power Chain Reactions 2 | . . . . . 1 1 . . . . . . Alert | -11 -10 -10 -10 -9 -8 -7 -7 -7 -6 -6 -6 -5 ------- Run | Yrd Mat Min Exi Min Mat Fac Was Fac Fac Low Dat Pro Peak Influence 1132 | 45 230 26 . 264 1132 727 228 883 712 . . . Initial 476 | . 29 26 . . 102 476 228 19 432 . . . Average 407 | 21 123 26 . 191 653 437 144 325 592 . . . Maximum Alert Level 4 | . 1 . . 1 4 3 1 3 3 . . . Low Security (%) 28 | 100 74 100 . 63 12 5 41 45 . . . . Level 1 28 | . 25 . . 36 20 38 58 28 . . . . Level 2 20 | . . . . . 4 45 . 12 76 . . . Level 3 20 | . . . . . 54 10 . 13 23 . . . Level 4 2 | . . . . . 8 . . . . . . . Level 5 . | . . . . . . . . . . . . . High Security . | . . . . . . . . . . . . . Max Security . | . . . . . . . . . . . . . Squads Dispatched 30 | . 2 . . . 10 7 . 8 3 . . . Investigation 12 | . 1 . . . 1 3 . 5 2 . . . Extermination 5 | . . . . . . 2 . 2 1 . . . Reinforcement 7 | . 1 . . . 5 . . 1 . . . . Assault 3 | . . . . . 1 2 . . . . . . Garrison 3 | . . . . . 3 . . . . . . . Intercept . | . . . . . . . . . . . . . Searches Triggered . | . . . . . . . . . . . . . Construction Impeded 3 | . . . . . 2 . . 1 . . . . Haulers Reinforced . | . . . . . . . . . . . . . Active Scanning Responses . | . . . . . . . . . . . . . Cargo Convoy Interrupts . | . . . . . . . . . . . . . Stealth | -11 -10 -10 -10 -9 -8 -7 -7 -7 -6 -6 -6 -5 --------- Run | Yrd Mat Min Exi Min Mat Fac Was Fac Fac Low Dat Pro Distress Signals 11 | . 2 . . . 2 . . 3 4 . . . Communications Jammed . | . . . . . . . . . . . . . Distress Signals . | . . . . . . . . . . . . . Times Spotted 190 | 1 20 . . 10 66 38 . 20 17 6 8 4 Peak Tracking Total 9 | 1 4 . . 4 8 9 . 6 4 5 4 3 Tactical Retreats 12 | . 1 . . . 7 2 . 1 . . . 1 Traps | -11 -10 -10 -10 -9 -8 -7 -7 -7 -6 -6 -6 -5 ------- Run | Yrd Mat Min Exi Min Mat Fac Was Fac Fac Low Dat Pro Traps Triggered 7 | . 1 . . . 2 4 . . . . . . Indirectly . | . . . . . . . . . . . . . Trap Hack Attempts . | . . . . . . . . . . . . . Triggered . | . . . . . . . . . . . . . Disarmed . | . . . . . . . . . . . . . Reprogrammed . | . . . . . . . . . . . . . Reused . | . . . . . . . . . . . . . Traps Extracted . | . . . . . . . . . . . . . Installed . | . . . . . . . . . . . . . Triggered 2 | . . . . . . 2 . . . . . . Machines | -11 -10 -10 -10 -9 -8 -7 -7 -7 -6 -6 -6 -5 ---------- Run | Yrd Mat Min Exi Min Mat Fac Was Fac Fac Low Dat Pro Machines Disabled 15 | . . . . . 9 1 . 2 1 1 1 . Max in Single Turn 2 | . . . . . 2 1 . . 1 1 1 . Machines Repaired . | . . . . . . . . . . . . . Machines Dismantled . | . . . . . . . . . . . . . Machines Sabotaged . | . . . . . . . . . . . . . Overloaded Fab Kills . | . . . . . . . . . . . . . Hacking | -11 -10 -10 -10 -9 -8 -7 -7 -7 -6 -6 -6 -5 --------- Run | Yrd Mat Min Exi Min Mat Fac Was Fac Fac Low Dat Pro Machines Accessed 31 | . 5 . 5 . 3 5 . 6 3 . 4 . Terminals 5 | . 3 . . . . 1 . 1 . . . . Fabricators 4 | . . . . . . 2 . 2 . . . . Repair Stations 6 | . 1 . . . 2 1 . 1 1 . . . Recycling Units 3 | . 1 . . . 1 . . . 1 . . . Scanalyzers 4 | . . . . . . 1 . 2 1 . . . Garrison Access . | . . . . . . . . . . . . . Total Hacks 138 | . 12 . 50 . 12 16 . 16 7 . 25 . Successful 122 | . 12 . 50 . 12 9 . 11 3 . 25 . Failed 16 | . . . . . . 7 . 5 4 . . . Catastrophic 3 | . . . . . . 2 . 1 . . . . Database Lockouts . | . . . . . . . . . . . . . Manual 1 | . . . 1 . . . . . . . . . Terminals 11 | . 7 . . . . 1 . 3 . . . . Fabricators 11 | . . . . . . 6 . 5 . . . . Repair Stations 25 | . 4 . . . 11 3 . 4 3 . . . Recycling Units 3 | . 1 . . . 1 . . . 1 . . . Scanalyzers 13 | . . . . . . 6 . 4 3 . . . Garrison Access . | . . . . . . . . . . . . . Terminal Hacks 85 | . 7 . 50 . . 1 . 2 . . 25 . Record 65 | . 6 . 49 . . . . 2 . . 8 . Part Schematic 9 | . . . . . . . . . . . 9 . Robot Schematic 5 | . . . . . . . . . . . 5 . Prototype ID Bank 4 | . 1 . . . . . . . . . 3 . Open DSF 1 | . . . . . . 1 . . . . . . Derelict Proto ID Bank 1 | . . . 1 . . . . . . . . . Fabricator Hacks 6 | . . . . . . 3 . 3 . . . . Load Schematic 4 | . . . . . . 2 . 2 . . . . Build 2 | . . . . . . 1 . 1 . . . . Repair Station Hacks 19 | . 4 . . . 11 . . 3 1 . . . Scan Component 11 | . 2 . . . 6 . . 2 1 . . . Repair 8 | . 2 . . . 5 . . 1 . . . . Recycling Unit Hacks 3 | . 1 . . . 1 . . . 1 . . . Report Inventory 3 | . 1 . . . 1 . . . 1 . . . Scanalyzer 9 | . . . . . . 5 . 3 1 . . . Insert Component 6 | . . . . . . 3 . 2 1 . . . Analyze 3 | . . . . . . 2 . 1 . . . . Garrison Access Hacks . | . . . . . . . . . . . . . Unauthorized Hacks . | . . . . . . . . . . . . . Terminals . | . . . . . . . . . . . . . Fabricators . | . . . . . . . . . . . . . Repair Stations . | . . . . . . . . . . . . . Recycling Units . | . . . . . . . . . . . . . Scanalyzers . | . . . . . . . . . . . . . Garrison Access . | . . . . . . . . . . . . . Data Cores Recovered 1 | . . . . . . . . 1 . . . . Used . | . . . . . . . . . . . . . Hacking Detections 15 | . 3 . . . 1 3 . 5 3 . . . Full Trace Events 12 | . 1 . . . 1 3 . 5 2 . . . Feedback Events 2 | . . . . . . . . . 2 . . . Corruption 2 | . . . . . . . . . 2 . . . Feedback Blocked . | . . . . . . . . . . . . . Robot Schematics Acquired 5 | . . . . . . . . . . . 5 . Robots Built . | . . . . . . . . . . . . . Authchips . | . . . . . . . . . . . . . Time . | . . . . . . . . . . . . . Total Robot Build Rating . | . . . . . . . . . . . . . Part Schematics Acquired 12 | . . . . . . 2 . 1 . . 9 . Parts Built 2 | . . . . . . 1 . 1 . . . . Authchips . | . . . . . . . . . . . . . Time 174 | . . . . . . 58 . 116 . . . . Total Part Build Rating 6 | . . . . . . 3 . 3 . . . . Parts Repaired 8 | . 2 . . . 5 . . 1 . . . . Time 346 | . 52 . . . 250 . . 44 . . . . Parts Recycled . | . . . . . . . . . . . . . Recycled Matter . | . . . . . . . . . . . . . Retrieved Matter . | . . . . . . . . . . . . . Retrieved Components . | . . . . . . . . . . . . . Parts Scanalyzed 4 | . . . . . . 2 . 1 1 . . . Part Schematics Acquired 3 | . . . . . . 2 . 1 . . . . Parts Damaged . | . . . . . . . . . . . . . Bothacking | -11 -10 -10 -10 -9 -8 -7 -7 -7 -6 -6 -6 -5 ------------ Run | Yrd Mat Min Exi Min Mat Fac Was Fac Fac Low Dat Pro Used RIF Installer . | . . . . . . . . . . . . . Robots Hacked . | . . . . . . . . . . . . . Non-combat . | . . . . . . . . . . . . . Combat . | . . . . . . . . . . . . . Robot Hacks Applied . | . . . . . . . . . . . . . Relay Couplers Released . | . . . . . . . . . . . . . Fabnet Peak Effective % . | . . . . . . . . . . . . . Robots Rewired . | . . . . . . . . . . . . . Allies Hacked . | . . . . . . . . . . . . . Hacks Repelled . | . . . . . . . . . . . . . Allies | -11 -10 -10 -10 -9 -8 -7 -7 -7 -6 -6 -6 -5 -------- Run | Yrd Mat Min Exi Min Mat Fac Was Fac Fac Low Dat Pro Total Allies 29 | . . 3 . . 5 . 21 . . . . . Largest Group 21 | . . 3 3 3 2 . 21 21 12 1 . . Highest-Rated Group 556 | . . 40 40 40 24 . 556 556 353 27 . . Highest-Rated Ally 35 | . . 16 16 16 16 . 35 35 31 27 . . Total Orders 1 | . . 1 . . . . . . . . . . FOLLOW 1 | . . 1 . . . . . . . . . . Ally Attacks 271 | . . . . 41 14 . 7 116 93 . . . Total Damage 4966 | . . . . 452 136 . 95 2690 1593 . . . Kills 41 | . . . . 10 . . 1 23 7 . . . Allies Corrupted 1 | . . . . . . . . 1 . . . . Allies Melted . | . . . . . . . . . . . . . Field Lobotomies 5 | . . . . . 5 . . . . . . . Intel | -11 -10 -10 -10 -9 -8 -7 -7 -7 -6 -6 -6 -5 ------- Run | Yrd Mat Min Exi Min Mat Fac Was Fac Fac Low Dat Pro Robot Analysis Total . | . . . . . . . . . . . . . Derelict Logs Recovered 2 | . . . . 2 . . . . . . . . Drone Launches . | . . . . . . . . . . . . . Drone Recoveries . | . . . . . . . . . . . . . Exploration | -11 -10 -10 -10 -9 -8 -7 -7 -7 -6 -6 -6 -5 ------------- Run | Yrd Mat Min Exi Min Mat Fac Was Fac Fac Low Dat Pro Turns Passed 10253 | 192 875 75 444 390 2066 2072 685 1074 708 1433 83 156 Spaces Moved 11126 | 159 1112 145 965 789 1821 1740 487 1649 561 1303 90 305 Core 399 | 19 . . . . 16 10 . 2 . . 47 305 Treads . | . . . . . . . . . . . . . Legs 765 | . . . . . 650 115 . . . . . . Wheels 1692 | 140 211 . . . . 1341 . . . . . . Hover 4312 | . 38 . . . 643 274 261 1189 561 1303 43 . Flight 3958 | . 863 145 965 789 512 . 226 458 . . . . Fastest Speed 37 | 50 37 37 37 37 37 60 116 37 38 98 46 50 Average Speed 70 | 76 45 37 37 37 75 101 127 39 94 101 70 50 Slowest Speed 400 | 80 120 37 37 37 250 400 280 400 102 102 150 50 Overloaded Moves . | . . . . . . . . . . . . . Propulsion Burnouts . | . . . . . . . . . . . . . Robots Hopped 13 | . 6 1 . 1 2 . . 3 . . . . Cave-ins Triggered . | . . . . . . . . . . . . . Exploration Rate (%) 57 | 8 97 26 96 99 54 26 97 36 13 86 73 36 Regions Visited 12 Branch Regions 6 Pre-discovered Areas 2 | . . . 1 1 . . . . . . . . Known Exits Taken 5 | . 1 1 1 1 1 . . . . . . . Unknown Exits Taken 5 | 1 . . . . . . . 1 1 1 1 . Scrap Searched 9 | . . . . 2 . . . . . 6 . 1 Spaces Dug . | . . . . . . . . . . . . . Terrain Destroyed 305 | . . . . . 300 5 . . . . . . Melee . | . . . . . . . . . . . . . Projectile 19 | . . . . . 18 1 . . . . . . AOE 286 | . . . . . 282 4 . . . . . . Terrain Rammed . | . . . . . . . . . . . . . Walls Destroyed . | . . . . . . . . . . . . . Machines Disabled . | . . . . . . . . . . . . . Actions | -11 -10 -10 -10 -9 -8 -7 -7 -7 -6 -6 -6 -5 --------- Run | Yrd Mat Min Exi Min Mat Fac Was Fac Fac Low Dat Pro Total 12876 | 203 1337 164 1051 875 2225 1938 553 2050 706 1356 110 308 Wait 783 | . 56 21 85 74 59 18 16 329 108 11 6 . Move 11089 | 158 1099 142 964 786 1816 1740 486 1642 560 1302 89 305 Hop 13 | . 6 1 . 1 2 . . 3 . . . . Pick Up 186 | 15 29 . 1 2 57 32 13 20 8 6 1 2 Fast Attach 16 | . 5 . . 2 2 2 1 3 . 1 . . Attach 109 | 8 6 . . . 40 29 7 7 4 6 1 1 Detach 16 | . 1 . . . 6 6 3 . . . . . Swap 71 | 4 19 . . . 26 6 5 7 2 . 2 . Drop 158 | 5 31 . 1 4 31 34 9 24 7 4 8 . Fire 412 | 13 85 . . 6 185 66 . 14 16 26 1 . Melee . | . . . . . . . . . . . . . Ram 10 | . . . . . 1 5 . 1 1 . 2 . Kick . | . . . . . . . . . . . . . Crush . | . . . . . . . . . . . . . Escape Stasis . | . . . . . . . . . . . . . Rewire 13 | . . . . . . . 13 . . . . . Trap . | . . . . . . . . . . . . . Miscellaneous . | . . . . . . . . . . . . . Route ------- -11/Scrapyard -10/Materials (discovered 4 exits: *Mat x3 / *Min) -10/Mines (discovered 3 exits: *Mat x2 / *Exi) -10/Exiles (discovered 2 exits: *Min x2) -9/Mines (discovered 2 exits: *Mat x2) -8/Materials -7/Factory -7/Waste -7/Factory (discovered 3 exits: *Fac x2 / [*Sto]) -6/Factory -6/Lower Caves (discovered 2 exits: [*Low] / *Dat) -6/Data Miner -5/Proximity Caves History --------- Turn | Location | Event 2 | -11/Scrapyard | Met Revision 17 64 | -11/Scrapyard | Discovered new exit (range 8) 193 | -11/Scrapyard | Entered Materials 297 | -10/Materials | Discovered new exit (range 16) 310 | -10/Materials | Build established: Mutant 591 | -10/Materials | Discovered new exit (range 12) 845 | -10/Materials | Build established: Scavenger-Mutant 845 | -10/Materials | Discovered new exit (range 18) 851 | -10/Materials | Identified exit to Mines 908 | -10/Materials | Discovered new exit (range 15) 956 | -10/Materials | Identified exit to Materials 1021 | -10/Materials | Repaired Flight Unit 1048 | -10/Materials | Repaired Flight Unit 1068 | -10/Materials | Entered Mines 1068 | -10/Mines | Discovered exit to Materials (range 11) 1078 | -10/Mines | Assisted by bots powering up and referring to "LRC-V3" 1080 | -10/Mines | Met a Derelict bent on vengeance 1106 | -10/Mines | Discovered exit to Materials (range 7) 1112 | -10/Mines | Deemed a non-threat by the Exiles lab entrance 1112 | -10/Mines | Discovered new exit (range 5) 1113 | -10/Mines | Identified exit to Exiles 1143 | -10/Mines | Entered Exiles 1143 | -10/Exiles | Accompanied by 3 allies 1149 | -10/Exiles | Discovered new exit (range 15) 1159 | -10/Exiles | Identified exit to Mines 1168 | -10/Exiles | Met 8R-AWN 1189 | -10/Exiles | Met EX-HEX 1238 | -10/Exiles | Met EX-DEC 1247 | -10/Exiles | Learned location of Zion (-7) 1267 | -10/Exiles | Discovered exit to Mines (range 15) 1313 | -10/Exiles | Visited The Gauntlet 1328 | -10/Exiles | Met EX-BIN 1341 | -10/Exiles | Aligned with FarCom system 1341 | -10/Exiles | Given EX-Vault access code 1498 | -10/Exiles | Opened EX-Vault 1502 | -10/Exiles | Found Field Lobotomy Kit 1511 | -10/Exiles | Warned to stay clear of 0b10 Research branches 1587 | -10/Exiles | Left Exiles lab with Field Lobotomy Kit 1587 | -10/Exiles | Entered Mines 1587 | -9/Mines | Accompanied by 3 allies 1589 | -9/Mines | Core integrity fell below 50% 1704 | -9/Mines | Received a Rocket Launcher from a helpful Derelict 1768 | -9/Mines | Discovered new exit (range 11) 1771 | -9/Mines | Identified exit to Materials 1819 | -9/Mines | Discovered exit to Materials (range 11) 1834 | -9/Mines | Learned Materials emergency access door positions 1977 | -9/Mines | Entered Materials 1977 | -8/Materials | Accompanied by 2 allies 1977 | -8/Materials | Evolved 4 slots: Propulsion x2, Utility x2 2126 | -8/Materials | Assimilated Y-45 Defender with FLK Orb 2131 | -8/Materials | Assimilated L-31 Rogue with FLK Orb 2137 | -8/Materials | Assimilated G-47 Trooper with FLK Orb 2146 | -8/Materials | Assimilated G-47 Trooper with FLK Orb 2149 | -8/Materials | Assimilated G-47 Trooper with FLK Orb 2177 | -8/Materials | Lost 4 allies 2319 | -8/Materials | Repaired Rocket Launcher? 2434 | -8/Materials | Repaired Aerolev Unit? 2453 | -8/Materials | Repaired Aerolev Unit? 2534 | -8/Materials | Repaired Lgt. Nuclear Core? 2553 | -8/Materials | Garrison activated, responded to threat 2682 | -8/Materials | Repaired Aerolev Unit 2758 | -8/Materials | Build established: Mutant 2777 | -8/Materials | First assault squad dispatched 2904 | -8/Materials | Core integrity fell below 50% 2974 | -8/Materials | Destroyed 8 combat bots 2979 | -8/Materials | Lost 9 parts (2p4n1u2w) 3674 | -8/Materials | Core integrity fell below 20% 4017 | -8/Materials | Discovered new exit (range 16) 4040 | -8/Materials | Identified exit to Factory 4043 | -8/Materials | Entered Factory 4043 | -7/Factory | Evolved 2 slots: Utility x1, Weapon x1 4178 | -7/Factory | Identified exit to DSF 4497 | -7/Factory | Build established: Gunner 5592 | -7/Factory | Fabricated Aerolev Unit? 5643 | -7/Factory | First assault squad dispatched 6115 | -7/Factory | Sucked down chute 6115 | -7/Factory | Entered Waste 6116 | -7/Waste | Met a frightened Derelict 6116 | -7/Waste | Joined by Warlord forces that had cleared the area 6380 | -7/Waste | A Compactor rumbled back to life 6381 | -7/Waste | Spotted C-40 Crusher 6381 | -7/Waste | Allies destroyed C-40 Crusher 6470 | -7/Waste | Discovered new exit (range 13) 6800 | -7/Waste | Entered Factory 6800 | -7/Factory | Accompanied by 21 allies 6841 | -7/Factory | Discovered new exit (range 7) 6844 | -7/Factory | Discovered new exit (range 4) 6896 | -7/Factory | Lost 3 allies 7222 | -7/Factory | Fabricated Aerolev Unit (x1) 7340 | -7/Factory | Repaired Imp. Cooling System 7630 | -7/Factory | Discovered new exit (range 16) 7874 | -7/Factory | Entered another Factory area 7874 | -6/Factory | Accompanied by 12 allies 7874 | -6/Factory | Evolved 2 slots: Power x1, Utility x1 8135 | -6/Factory | Lost 3 allies 8218 | -6/Factory | Discovered new exit (range 6) 8476 | -6/Factory | Lost 3 allies 8582 | -6/Factory | Entered Lower Caves 8582 | -6/Lower Caves | Accompanied by 1 ally 8698 | -6/Lower Caves | Attracted the attention of an 0b10 outpost 8833 | -6/Lower Caves | Lost 4 parts (1n2u1w) 9241 | -6/Lower Caves | Spotted B-75 Beast 9315 | -6/Lower Caves | Discovered new exit (range 3) 9976 | -6/Lower Caves | A Derelict revealed a hidden shortcut to meet someone special 10015 | -6/Lower Caves | Entered Data Miner 10015 | -6/Data Miner | Discovered new exit (range 6) 10035 | -6/Data Miner | Met Data Miner 10037 | -6/Data Miner | Data Conduit disabled 10071 | -6/Data Miner | Acquired the access code to Warlord's prototype stash 10084 | -6/Data Miner | Core integrity fell below 50% 10088 | -6/Data Miner | Core integrity fell below 20% 10098 | -6/Data Miner | Entered Proximity Caves 10116 | -5/Proximity Caves | Lost 10 parts (2p2n3u3w) 10254 | -5/Proximity Caves | Destroyed by Y-64 Sentinel with KE Penetrator Last Messages --------------- 10078_ ORACLE Interface disabled. 10079_ ORACLE Interface goes dark. 10081_ Plasma Cannon destroyed. 10084_ Slammed into Enhanced Grunt. 10085_ Imp. Cooling System destroyed. LOCATION=UNKNOWN GOAL=ESCAPE 10129_ System corrupted: Matter fused (-6). 10186_ System corrupted: Matter fused (-5). 10202_ Searching scrap... 10202_ Found Adv. Cooling System. 10202_ Found Imp. Signal Interpreter. 10202_ Found 17 Matter. 10203_ Acquired Adv. Cooling System. 10204_ Acquired 11 matter. 10205_ Acquired Imp. Signal Interpreter. 10207_ Acquired 6 matter. 10254_ Penetrated by Slug. [Achievement: 5k Club] [Achievement: 10k Club] Map ----- +----------------------------------------------------+ | ?????????????????????????????????????????????????? | | ?????????????????????????????????????????????????? | | #####????????????????????????????????????????????? | | #????????????????????????????????????????????? | | ## #????????????????????????????????????????????? | | ?# #????????????????????????????????????????????? | | ? #????????????????????????????????????????????? | | ? ????????????????????????????????????????????? | | #???????????????????????????????????????????? | | #???????????????????????????????????????????? | | ## ##???????????????? ????????????????????????? | | #?##??????????????? Y????????????????????????? | | ##### #???????????# ????????????????????????? | | #???????##### ????????????????????????? | | ??? ????????????????????????? | | #### ???? #???????????????????????? | | ??????????????????# ##?????????????????????? | | #?????????????????# ##????????????????????? | | ####??????????????# #????????????????????? | | ##?????????????# #####????????????????? | | #??????????????# ##???????????????? | | #???????????? ??# #???????????????? | | ########### # ### #???????????????? | | #?# #????????????????? | | " #??? # #?????????????????? | | " #???# ####@ #?????????????????? | | " "" #???# ???# ##?????????????????? | | " #???# #??## ##??????????????????? | | """ ##### #### #???????????????????? | | """" ## ###?????????????????? | | " """"" # ##### #?????????????????? | | " # #???# ##?????????????????? | | "" # #???# #??????????????????? | | " """ # ###?# #??????????????????? | | " " ### ##??????????????????? | | " ##???????????????????? | | " ##????????????????????? | | #####?????????????????????? | | ######## ###### #????????????????????????? | | ??????# #????# #??????????????????????? | | ??????# #????# ##??????????????????????? | | ??????##### #???# ##???????????????????????? | | ??????????## ?? ####????????????????????????? | | ???????????# ????????????????????????????? | | ???????????# ????????????????????????????? | | ???????????# ????????????????????????????? | | ???????????### ????????????????????????????? | | ??????????????# ????????????????????????????? | | ??????????????? ### ????????????????????????????? | | ??????????????????#? ????????????????????????????? | +----------------------------------------------------+ Best States ------------- Heat Dissipation 137 Energy Generation 38 Energy Capacity 530 Matter Stores 450 Matter Capacity 450 Sight Range 20 Robot Scan Range 15 Terrain Scan Range 16 Terrain Scan Density 10 Armor Coverage 225 Weapon Cycling 15 Evasion (%) 62 Targeting Accuracy 16 Target Analysis 5 Particle Charging 15 Offensive Hacking 10 Defensive Hacking 10 Item Schematics ----------------- Gatling Laser | -7/Factory | Scanalyzed Aerolev Unit | -7/Factory | Scanalyzed Adv. Targeting Computer | -7/Factory | Scanalyzed Combat Drone Bay | -6/Data Miner | Free Lgt. Regenerative Plating | -6/Data Miner | Free Cld. Gravmag System | -6/Data Miner | Free Prc. Energy Filter | -6/Data Miner | Free Enh. Force Rifle | -6/Data Miner | Free Imp. Antigrav System | -6/Data Miner | Free Imp. System Guard | -6/Data Miner | Free Hvy. Gauss Cannon | -6/Data Miner | Free Adv. Plasma Cannon | -6/Data Miner | Free Robot Schematics ------------------ Y-54 Guardian | -6/Data Miner | Free B-60 Warrior | -6/Data Miner | Free E-15 Imp | -6/Data Miner | Free P-60 Hacker | -6/Data Miner | Free M-30 Cleanser | -6/Data Miner | Free Fabricated ------------ Aerolev Unit | x1 | -7/Factory Aerolev Unit | x1 | -7/Factory Alien Tech Used ----------------- None Achievements -------------- 10k Club 5k Club Close Call Crack Shot It's Just You Just What I Needed Made in Tau Ceti IV Party Time Remodeling Risk Taker Serviceable Loadout Significant Disruption Storm Trooper The More The Merrier The Oracle Tourist Troublemaker We Are Legion Challenges ------------ None Game ------ Seed RelayParticleDoublenader Manual? 0 Play Time 03:35:37 Cumulative 5.3 hours Start 2024.04.02 @ 22:32:04 End 2024.04.03 @ 02:16:20 Sessions 1 Manual Loads 0 Difficulty Rogue Special Mode None Game No. 3 Rogue 3 Adventurer 0 Explorer 0 Win Type - Total 0 Types 0/0/0/0/0/0/0/0/0 Lore% 11 Gallery% 9 Achievement% 10 Wizard Run 0 Options --------- Layout 1 ASCII 0 Keyboard 0 Movement Mouse Keybinds 0 Fullscreen 1 Font 32/SmallcapsGlow Map View 50x35 Zoom Use 0% Tactical HUD 1 Map Filters NONE Filters NONE Steam 0 RUN: bd084a47-9db1-4ba0-9f11-90e0003da1b2